bitfinex/quotes_BTCUSD_20220205
["timestamp","ask_amount","ask_price","bid_price","bid_amount"]
[1644099193341,0.05172601,41752.0,41747.0,0.24093261]
[1644099194144,0.00372601,41752.0,41751.0,0.334704]
[1644099194346,0.00329998,41752.0,41751.0,0.334704]
[1644099194600,0.00372588,41752.0,41750.0,0.05]
[1644099194796,0.00372588,41752.0,41748.0,0.0002876]
[1644099194997,0.00372588,41752.0,41751.0,0.36146761]
[1644099195195,0.00372588,41752.0,41751.0,0.31146761]
[1644099195596,0.00303041,41752.0,41751.0,0.31146761]
[1644099195997,0.00303041,41752.0,41751.0,0.36146761]
[1644099196795,0.00303041,41752.0,41751.0,0.69617161]
[1644099197397,0.00303041,41752.0,41751.0,0.64617161]
[1644099198854,0.00303041,41752.0,41751.0,0.31146761]
[1644099199258,0.00303041,41752.0,41751.0,0.91111681]
[1644099200258,0.00026957,41753.0,41752.0,0.734704]
[1644099200458,0.00027945,41754.0,41752.0,0.62808032]
[1644099200659,0.00027945,41754.0,41751.0,0.41146761]
[1644099200660,0.00027945,41754.0,41753.0,0.67139211]
[1644099201559,0.00026957,41757.0,41753.0,0.67139211]
[1644099201760,0.02008658,41758.0,41757.0,0.334704]
[1644099202004,0.01981701,41758.0,41757.0,0.334704]
[1644099202401,0.00026903,41762.0,41757.0,0.334704]
[1644099202594,0.00026903,41762.0,41758.0,0.30659228]
[1644099202995,0.00069634,41760.0,41758.0,0.30659228]
[1644099203898,0.00026903,41762.0,41758.0,0.30659228]
[1644099204296,0.00069633,41761.0,41758.0,0.30659228]
[1644099204495,0.00026903,41760.0,41758.0,0.30659228]
[1644099205397,0.00070287,41761.0,41758.0,0.30659228]
[1644099205747,0.00026903,41760.0,41758.0,0.30659228]
[1644099206146,0.00026903,41760.0,41758.0,0.64129628]
[1644099206646,0.00070287,41761.0,41758.0,0.64129628]
[1644099206845,0.00026903,41760.0,41758.0,0.64129628]
[1644099207850,0.0767196,41764.0,41758.0,0.64129628]
[1644099207851,0.00070287,41761.0,41758.0,0.64129628]
[1644099208051,0.00026903,41760.0,41758.0,0.64129628]
[1644099209053,0.00069411,41761.0,41758.0,0.64129628]
[1644099209251,0.00026903,41760.0,41758.0,0.90196294]
[1644099209494,0.00026903,41760.0,41758.0,0.90195304]
[1644099209695,0.00026903,41760.0,41758.0,0.90243985]
[1644099209896,0.07568274,41764.0,41758.0,0.90243985]
[1644099210102,0.07568274,41764.0,41758.0,0.56773585]
[1644099210899,0.048,41763.0,41754.0,0.29697016]
[1644099211296,0.048,41763.0,41756.0,0.05]
[1644099211497,0.04827983,41763.0,41756.0,0.05]
[1644099212096,0.04827983,41763.0,41754.0,0.66533964]
[1644099212298,0.07317765,41757.0,41754.0,0.66533964]
[1644099212498,0.07317765,41757.0,41756.0,0.05]
[1644099212802,0.07317765,41757.0,41756.0,0.384704]
[1644099213644,0.07317765,41757.0,41756.0,0.65692303]
[1644099214447,0.07317765,41757.0,41756.0,0.89692303]
[1644099215047,0.07317765,41757.0,41756.0,0.84692303]
[1644099218794,0.07317765,41757.0,41756.0,0.24]
[1644099219196,0.12117765,41757.0,41756.0,0.24]
[1644099223255,0.07317765,41757.0,41756.0,0.24]
[1644099223455,0.07317765,41757.0,41756.0,0.624704]
[1644099224257,0.07317765,41757.0,41756.0,0.574704]
[1644099224500,0.07317765,41757.0,41756.0,0.24]
[1644099224697,0.07317765,41757.0,41756.0,0.574704]
[1644099226996,0.07317765,41757.0,41756.0,0.24]
[1644099228645,0.07317765,41757.0,41756.0,0.574704]
[1644099230646,0.07317765,41757.0,41756.0,0.24]
[1644099230851,0.07303982,41757.0,41756.0,0.24]
[1644099231449,0.00026858,41759.0,41756.0,0.24]
[1644099231651,0.048,41760.0,41756.0,0.24]
[1644099231850,0.00026858,41759.0,41756.0,0.24]
[1644099232097,0.04826858,41760.0,41756.0,0.24]
[1644099232297,0.00026858,41759.0,41756.0,0.24]
[1644099232595,0.048,41760.0,41756.0,0.24]
[1644099232802,0.04826858,41760.0,41756.0,0.24]
[1644099232996,0.06411753,41757.0,41756.0,0.24]
[1644099233196,0.06411753,41757.0,41756.0,0.574704]
[1644099240209,0.00026858,41759.0,41756.0,0.574704]
[1644099240510,0.04826858,41760.0,41757.0,0.05]
[1644099240711,0.00026858,41759.0,41758.0,0.59680882]
[1644099240910,0.00026858,41761.0,41758.0,0.384704]
[1644099241110,0.00026858,41761.0,41758.0,0.05]
[1644099241309,0.02058547,41762.0,41758.0,0.05]
[1644099241513,0.02031689,41762.0,41758.0,0.05]
[1644099242612,0.00054839,41763.0,41758.0,0.05]
[1644099242811,0.00027981,41763.0,41758.0,0.05]
[1644099243011,0.00054839,41763.0,41758.0,0.05]
[1644099243249,0.00027981,41763.0,41759.0,0.334704]
[1644099243449,0.00054839,41763.0,41759.0,0.334704]
[1644099243650,0.0704455,41764.0,41759.0,0.334704]
[1644099243850,0.0005484,41763.0,41758.0,0.05]
[1644099244053,0.00027982,41763.0,41759.0,0.334704]
[1644099244249,0.0005484,41763.0,41759.0,0.334704]
[1644099244449,0.00027982,41763.0,41759.0,0.334704]
[1644099244649,0.0005484,41763.0,41759.0,0.334704]
[1644099244851,0.0704455,41764.0,41760.0,0.26393829]
[1644099245050,0.00100989,41763.0,41759.0,0.334704]
[1644099245250,0.00074131,41763.0,41759.0,0.334704]
[1644099245450,0.00100989,41763.0,41759.0,0.334704]
[1644099246050,0.00026858,41763.0,41759.0,0.334704]
[1644099246251,0.00074131,41763.0,41759.0,0.334704]
[1644099246453,0.00100989,41763.0,41759.0,0.334704]
[1644099247305,0.00026858,41763.0,41759.0,0.334704]
[1644099247510,0.00074131,41763.0,41759.0,0.334704]
[1644099247706,0.00100989,41763.0,41759.0,0.334704]
[1644099247905,0.00100989,41763.0,41762.0,0.05]
[1644099248104,0.00074131,41763.0,41762.0,0.05]
[1644099248605,0.00026858,41764.0,41762.0,0.05]
[1644099249211,0.00200987,41765.0,41762.0,0.05]
[1644099249504,0.08179925,41763.0,41762.0,0.05]
[1644099253749,0.00026858,41764.0,41762.0,0.05]
[1644099253952,0.00200987,41765.0,41762.0,0.05]
[1644099254353,0.00126858,41765.0,41762.0,0.05]
[1644099254802,0.00168797,41763.0,41762.0,0.05]
[1644099255003,0.00168797,41763.0,41762.0,0.04988527]
[1644099255403,0.0830845,41763.0,41762.0,0.04988527]
[1644099257206,0.0830845,41763.0,41760.0,0.334704]
[1644099257402,0.0830845,41763.0,41762.0,0.334704]
[1644099259152,0.00168797,41763.0,41762.0,0.334704]
[1644099261857,0.07100633,41763.0,41762.0,0.334704]
[1644099263896,0.07100633,41763.0,41762.0,0.38458927]
[1644099267549,0.07100633,41763.0,41762.0,0.334704]
[1644099267950,0.07100633,41763.0,41762.0,0.38458927]
[1644099270999,0.07100633,41763.0,41762.0,0.334704]
[1644099271398,0.00168797,41763.0,41762.0,0.334704]
[1644099272199,7.128e-05,41766.0,41763.0,0.26121864]
[1644099272699,0.00074166,41765.0,41763.0,0.26121864]
[1644099273550,0.08943402,41765.0,41763.0,0.26121864]
[1644099277997,0.00081292,41766.0,41763.0,0.26121864]
[1644099278297,0.00081292,41766.0,41763.0,0.65391233]
[1644099278497,7.128e-05,41766.0,41763.0,0.65391233]
[1644099279200,7.128e-05,41766.0,41764.0,0.60769067]
[1644099279402,7.128e-05,41766.0,41764.0,0.334704]
[1644099280100,7.128e-05,41766.0,41764.0,0.434704]
[1644099280302,7.128e-05,41766.0,41764.0,0.384704]
[1644099280599,7.128e-05,41766.0,41764.0,0.434704]
[1644099281255,7.128e-05,41766.0,41765.0,0.28937613]
[1644099287805,7.128e-05,41766.0,41765.0,0.27937613]
[1644099288005,7.128e-05,41766.0,41765.0,0.32937613]
[1644099288850,7.128e-05,41766.0,41765.0,0.66408013]
[1644099289052,7.128e-05,41766.0,41765.0,0.32937613]
[1644099289451,7.128e-05,41766.0,41765.0,0.66408013]
[1644099289649,7.128e-05,41766.0,41765.0,0.32937613]
[1644099291853,7.128e-05,41766.0,41765.0,0.56937613]
[1644099292501,7.128e-05,41766.0,41765.0,0.90408013]
[1644099292702,7.128e-05,41766.0,41765.0,0.56937613]
[1644099293404,7.128e-05,41766.0,41765.0,0.51937613]
[1644099293600,7.128e-05,41766.0,41765.0,0.85408013]
[1644099293803,7.128e-05,41766.0,41765.0,0.51937613]
[1644099294001,7.128e-05,41766.0,41765.0,0.85408013]
[1644099294204,7.128e-05,41766.0,41765.0,0.51937613]
[1644099295402,7.128e-05,41766.0,41765.0,0.7182857]
[1644099296253,7.128e-05,41766.0,41765.0,0.51937613]
[1644099297554,7.128e-05,41766.0,41765.0,0.78415536]
[1644099298356,7.128e-05,41766.0,41765.0,0.51937613]
[1644099299056,7.128e-05,41766.0,41765.0,0.85408013]
[1644099299253,7.128e-05,41766.0,41765.0,0.51937613]
[1644099299502,7.128e-05,41766.0,41765.0,0.7375457]
[1644099299904,7.128e-05,41766.0,41765.0,0.51937613]
[1644099300905,7.128e-05,41766.0,41765.0,0.76891037]
[1644099302106,7.128e-05,41766.0,41765.0,0.51937613]
[1644099304157,7.128e-05,41766.0,41765.0,0.85408013]
[1644099304357,7.128e-05,41766.0,41765.0,0.51937613]
[1644099304557,7.128e-05,41766.0,41765.0,0.85408013]
[1644099304961,7.128e-05,41766.0,41765.0,0.51937613]
[1644099305759,7.128e-05,41766.0,41765.0,0.56937613]
[1644099307203,7.128e-05,41766.0,41765.0,0.83254825]
[1644099307803,7.128e-05,41766.0,41765.0,1.16725225]
[1644099308002,7.128e-05,41766.0,41765.0,0.83254825]
[1644099308204,7.128e-05,41766.0,41765.0,0.56937613]
[1644099309104,0.03559793,41766.0,41765.0,0.56937613]
[1644099309304,0.07112458,41766.0,41765.0,1.11714955]
[1644099309503,0.07112458,41766.0,41765.0,1.05308855]
[1644099309703,0.07112458,41766.0,41765.0,1.11714955]
[1644099309903,0.07112458,41766.0,41765.0,0.78244555]
[1644099310103,0.07112458,41766.0,41765.0,1.11714955]
[1644099310304,0.07112458,41766.0,41765.0,0.78244555]
[1644099310750,0.07112458,41766.0,41765.0,0.73244555]
[1644099311455,0.07112458,41766.0,41765.0,1.06714955]
[1644099311651,0.16013106,41766.0,41765.0,0.85399416]
[1644099311853,0.16013106,41766.0,41765.0,0.78993216]
[1644099312053,0.07112458,41766.0,41765.0,0.85399416]
[1644099312252,0.07112458,41766.0,41765.0,0.51929016]
[1644099312653,0.07112458,41766.0,41765.0,0.71908239]
[1644099313054,0.07112458,41766.0,41765.0,1.05378639]
[1644099313455,0.07112458,41766.0,41765.0,0.98972539]
[1644099313655,0.07112458,41766.0,41765.0,0.71908239]
[1644099314059,0.07112458,41766.0,41765.0,0.51929016]
[1644099314711,0.07112458,41766.0,41765.0,0.85399416]
[1644099314902,0.07112458,41766.0,41765.0,0.51929016]
[1644099319156,0.07112458,41766.0,41765.0,0.85399416]
[1644099319363,0.07112458,41766.0,41765.0,0.51929016]
[1644099321462,0.07112458,41766.0,41765.0,0.85399416]
[1644099321660,0.07112458,41766.0,41765.0,0.574704]
[1644099321865,0.07112458,41766.0,41765.0,0.24]
[1644099322316,0.07112458,41766.0,41765.0,0.574704]
[1644099322618,0.07112458,41766.0,41765.0,0.24]
[1644099323016,0.07112458,41766.0,41765.0,0.49876985]
[1644099323417,0.07112458,41766.0,41765.0,0.24]
[1644099324218,0.07112458,41766.0,41765.0,0.574704]
[1644099324422,0.07112458,41766.0,41765.0,0.24]
[1644099324618,0.07112458,41766.0,41765.0,0.50584306]
[1644099325117,0.07112458,41766.0,41765.0,0.24]
[1644099325859,0.07112458,41766.0,41765.0,0.29]
[1644099326459,0.07112458,41766.0,41765.0,0.624704]
[1644099326659,0.07112458,41766.0,41765.0,0.29]
[1644099326859,0.07105652,41766.0,41765.0,0.29]
[1644099327064,0.07105652,41766.0,41765.0,0.5523723]
[1644099328263,0.07105652,41766.0,41765.0,0.8870763]
[1644099328464,0.07105652,41766.0,41765.0,0.5523723]
[1644099330208,0.07105652,41766.0,41765.0,0.8870763]
[1644099330608,0.07105652,41766.0,41765.0,0.5023723]
[1644099332007,0.07105652,41766.0,41765.0,0.8370763]
[1644099332210,0.07105652,41766.0,41765.0,0.5023723]
[1644099333850,0.07105652,41766.0,41765.0,0.8370763]
[1644099334252,0.07105652,41766.0,41765.0,0.5023723]
[1644099336555,0.07105652,41766.0,41765.0,0.8370763]
[1644099336756,0.07105652,41766.0,41765.0,0.5023723]
[1644099337202,0.07105652,41766.0,41765.0,0.8370763]
[1644099337407,0.07105652,41766.0,41765.0,0.5023723]
[1644099337605,0.06087852,41766.0,41765.0,0.5023723]
[1644099337807,0.06087852,41766.0,41765.0,0.8370763]
[1644099338105,0.03552665,41766.0,41765.0,0.8370763]
[1644099338304,0.06087852,41766.0,41765.0,0.8370763]
[1644099340957,0.06087852,41766.0,41765.0,0.8870763]
[1644099341856,0.06087852,41766.0,41765.0,0.8370763]
[1644099352303,0.06074145,41766.0,41765.0,0.8370763]
[1644099352506,0.02535187,41766.0,41765.0,0.8370763]
[1644099352702,0.06074145,41766.0,41765.0,0.8370763]
[1644099354908,0.06074145,41766.0,41765.0,0.8870763]
[1644099355108,0.06074145,41766.0,41765.0,0.9370763]
[1644099355862,0.00054874,41768.0,41765.0,0.9370763]
[1644099356062,0.00028097,41768.0,41767.0,0.384704]
[1644099356460,0.00026777,41769.0,41768.0,0.334704]
[1644099356661,0.00026777,41770.0,41768.0,0.334704]
[1644099356860,0.00074394,41770.0,41769.0,0.334704]
[1644099357163,0.00101171,41770.0,41769.0,0.384704]
[1644099357361,0.00074394,41770.0,41769.0,0.434704]
[1644099357659,0.00026777,41771.0,41769.0,0.434704]
[1644099357860,0.00201169,41772.0,41771.0,0.334704]
[1644099358061,0.00174392,41772.0,41771.0,0.334704]
[1644099358661,0.00174392,41772.0,41771.0,0.59758449]
[1644099358862,0.001,41772.0,41771.0,0.59758449]
[1644099361111,0.001,41772.0,41771.0,0.334704]
[1644099377406,0.001,41772.0,41771.0,0.60460078]
[1644099378456,0.001,41772.0,41771.0,0.70460078]
[1644099378656,0.001,41772.0,41771.0,0.65460078]
[1644099378855,0.001,41772.0,41771.0,0.60460078]
[1644099379857,0.001,41772.0,41771.0,0.334704]
[1644099380055,0.001,41772.0,41771.0,0.6229135]
[1644099380455,0.001,41772.0,41771.0,0.33460377]
[1644099381056,0.001,41772.0,41771.0,0.60848164]
[1644099382513,0.001,41772.0,41771.0,0.33460377]
[1644099382712,0.001,41772.0,41771.0,0.60493248]
[1644099382911,0.001,41772.0,41771.0,0.33460377]
[1644099384815,0.001,41772.0,41771.0,0.43460377]
[1644099390619,0.001,41772.0,41771.0,0.7118719]
[1644099393116,0.001,41772.0,41771.0,0.7068719]
[1644099397806,0.001,41772.0,41771.0,0.33460377]
[1644099398008,0.001,41772.0,41765.0,0.24]
[1644099398209,0.001,41772.0,41766.0,0.334625]
[1644099398210,0.00126705,41772.0,41766.0,0.334625]
[1644099398406,0.00126705,41772.0,41766.0,0.634625]
[1644099398606,0.00126705,41772.0,41766.0,0.334625]
[1644099398807,0.00074876,41771.0,41766.0,0.334625]
[1644099399006,0.00101581,41771.0,41766.0,0.334625]
[1644099399806,0.00026705,41771.0,41767.0,0.334625]
[1644099400011,0.00074876,41771.0,41767.0,0.334625]
[1644099400212,0.00101581,41771.0,41767.0,0.334625]
[1644099401059,0.00026705,41771.0,41767.0,0.334625]
[1644099401260,0.00074876,41771.0,41767.0,0.334625]
[1644099401461,0.00101581,41771.0,41767.0,0.334625]
[1644099402260,0.00026705,41771.0,41767.0,0.334625]
[1644099402461,0.00074876,41771.0,41767.0,0.334625]
[1644099402665,0.00101581,41771.0,41767.0,0.334625]
[1644099403062,0.00101581,41771.0,41768.0,0.05]
[1644099403363,0.00026705,41771.0,41768.0,0.05]
[1644099403564,0.001,41772.0,41766.0,0.05]
[1644099403565,0.0020158,41772.0,41766.0,0.05]
[1644099403764,0.00026705,41771.0,41767.0,0.334625]
[1644099403964,0.0020158,41772.0,41767.0,0.384625]
[1644099404164,0.0020158,41772.0,41767.0,0.334625]
[1644099404618,0.00126705,41772.0,41767.0,0.334625]
[1644099404817,0.0020158,41772.0,41767.0,0.334625]
[1644099405719,0.00126705,41772.0,41767.0,0.334625]
[1644099405919,0.0020158,41772.0,41767.0,0.334625]
[1644099406518,0.00195285,41772.0,41767.0,0.334625]
[1644099406917,0.0012041,41772.0,41767.0,0.334625]
[1644099407118,0.0012041,41772.0,41768.0,0.05]
[1644099407119,0.00195285,41772.0,41768.0,0.05]
[1644099407318,0.00195285,41772.0,41766.0,0.334625]
[1644099408120,0.0012041,41772.0,41766.0,0.334625]
[1644099408361,0.00074876,41771.0,41766.0,0.334625]
[1644099408559,0.00101581,41771.0,41766.0,0.334625]
[1644099409363,0.00026705,41771.0,41766.0,0.334625]
[1644099409560,0.00074876,41771.0,41766.0,0.334625]
[1644099409862,0.00101581,41771.0,41766.0,0.333345]
[1644099410360,0.00101581,41771.0,41768.0,0.334625]
[1644099410665,0.00026705,41771.0,41768.0,0.334625]
[1644099410861,0.00074876,41771.0,41768.0,0.334625]
[1644099411062,0.00101581,41771.0,41768.0,0.334625]
[1644099411863,0.00026705,41771.0,41768.0,0.334625]
[1644099412109,0.00195285,41772.0,41768.0,0.334625]
[1644099412309,0.00026705,41771.0,41768.0,0.334625]
[1644099412610,0.00195285,41772.0,41768.0,0.334625]
[1644099413008,0.0012041,41772.0,41768.0,0.334625]
[1644099413212,0.00195285,41772.0,41768.0,0.334625]
[1644099414210,0.0012041,41772.0,41768.0,0.334625]
[1644099414408,0.00195285,41772.0,41768.0,0.334625]
[1644099415310,0.0012041,41772.0,41768.0,0.334625]
[1644099415767,0.00195285,41772.0,41768.0,0.334625]
[1644099416361,0.048,41771.0,41768.0,0.334625]
[1644099416561,0.04826705,41771.0,41768.0,0.334625]
[1644099424863,0.00026705,41771.0,41768.0,0.334625]
[1644099425060,0.0012041,41772.0,41768.0,0.334625]
[1644099425260,0.00026705,41771.0,41768.0,0.334625]
[1644099425459,0.00191008,41772.0,41768.0,0.334625]
[1644099425659,0.00026705,41771.0,41768.0,0.334625]
[1644099425859,0.00191008,41772.0,41768.0,0.334625]
[1644099426060,0.00026705,41771.0,41768.0,0.334625]
[1644099426263,0.0012041,41772.0,41768.0,0.334625]
[1644099426461,0.00191008,41772.0,41768.0,0.334625]
[1644099427309,0.0012041,41772.0,41768.0,0.334625]
[1644099427612,0.00191008,41772.0,41768.0,0.334625]
[1644099428610,0.0012041,41772.0,41768.0,0.334625]
[1644099428815,0.00191295,41772.0,41768.0,0.334625]
[1644099429212,0.00091295,41776.0,41768.0,0.334625]
[1644099429412,0.00091295,41776.0,41767.0,0.05]
[1644099430516,0.00091295,41776.0,41765.0,0.34]
[1644099432370,0.00028442,41774.0,41765.0,0.34]
[1644099432671,0.00028442,41774.0,41766.0,0.334623]
[1644099433469,0.00091295,41776.0,41766.0,0.334623]
[1644099433671,0.00074889,41774.0,41766.0,0.334623]
[1644099434508,0.00091295,41776.0,41766.0,0.334623]
[1644099434911,0.00069989,41774.0,41766.0,0.334623]
[1644099435910,0.00091295,41776.0,41766.0,0.334623]
[1644099436210,0.00069989,41774.0,41766.0,0.334623]
[1644099437011,0.00091295,41776.0,41766.0,0.334623]
[1644099437211,0.00069989,41774.0,41766.0,0.334623]
[1644099438259,0.00091295,41776.0,41766.0,0.334623]
[1644099438460,0.00069989,41774.0,41766.0,0.334623]
[1644099439360,0.00091295,41776.0,41766.0,0.334623]
[1644099439562,0.0007032,41774.0,41766.0,0.334623]
[1644099440662,0.00091295,41776.0,41766.0,0.334623]
[1644099440862,0.0007032,41774.0,41766.0,0.334623]
[1644099441866,0.00091295,41776.0,41766.0,0.334623]
[1644099442110,0.0007032,41774.0,41766.0,0.334623]
[1644099443010,0.00091295,41776.0,41766.0,0.334623]
[1644099443209,0.00070297,41774.0,41766.0,0.334623]
[1644099444219,0.00091295,41776.0,41767.0,0.05]
[1644099444418,0.00070297,41774.0,41767.0,0.05]
[1644099444712,0.00070297,41774.0,41767.0,0.334623]
[1644099445316,0.00091295,41776.0,41767.0,0.334623]
[1644099445516,0.00091295,41776.0,41766.0,0.05]
[1644099445762,0.00070298,41774.0,41766.0,0.334623]
[1644099446563,0.00091295,41776.0,41766.0,0.334623]
[1644099447063,0.00070299,41774.0,41766.0,0.334623]
[1644099447464,0.00070299,41774.0,41766.0,0.56609883]
[1644099447665,0.00070299,41774.0,41766.0,0.334623]
[1644099447863,0.00091295,41776.0,41766.0,0.334623]
[1644099448065,0.00070299,41774.0,41766.0,0.334623]
[1644099449069,0.00091295,41776.0,41766.0,0.334623]
[1644099449273,0.00070299,41774.0,41766.0,0.334623]
[1644099449712,0.00070299,41774.0,41766.0,0.33450868]
[1644099450114,0.00091295,41776.0,41766.0,0.33450868]
[1644099450313,0.048,41775.0,41765.0,0.2402876]
[1644099450515,0.08100968,41766.0,41765.0,0.2352876]
[1644099450713,0.08100968,41766.0,41765.0,0.5699006]
[1644099451113,0.27208681,41774.0,41766.0,0.334613]
[1644099451317,0.00070299,41774.0,41766.0,0.334613]
[1644099451516,0.048,41775.0,41765.0,0.2352876]
[1644099451715,0.00070299,41774.0,41766.0,0.334613]
[1644099452715,0.048,41775.0,41765.0,0.2352876]
[1644099452916,0.06474571,41767.0,41766.0,0.334613]
[1644099453764,0.06421235,41767.0,41766.0,0.334613]
[1644099457024,0.06421235,41767.0,41766.0,0.33489959]
[1644099460120,0.06293235,41767.0,41766.0,0.33489959]
[1644099460318,0.06224235,41767.0,41766.0,0.33489959]
[1644099463064,0.00070297,41774.0,41766.0,0.33489959]
[1644099463465,0.04891295,41776.0,41766.0,0.33489959]
[1644099463666,0.00070299,41774.0,41766.0,0.00028659]
[1644099463866,0.00070299,41774.0,41765.0,0.23528659]
[1644099464067,0.00070299,41774.0,41766.0,0.334613]
[1644099464266,0.00070299,41774.0,41766.0,0.33489959]
[1644099464718,0.04891295,41776.0,41766.0,0.00028659]
[1644099464917,0.00070299,41774.0,41766.0,0.334613]
[1644099465114,0.00070299,41774.0,41766.0,0.33489959]
[1644099465913,0.08344421,41769.0,41766.0,0.33489959]
[1644099466613,0.08344421,41769.0,41766.0,0.59844184]
[1644099467114,0.02112819,41774.0,41766.0,0.59844184]
[1644099467318,0.02183116,41774.0,41766.0,0.59844184]
[1644099468365,0.02112819,41774.0,41766.0,0.59844184]
[1644099468565,0.02183118,41774.0,41766.0,0.59844184]
[1644099468967,0.07558961,41769.0,41766.0,0.59844184]
[1644099472621,0.07558961,41769.0,41767.0,9.604e-05]
[1644099472819,0.07550177,41769.0,41768.0,0.334613]
[1644099473620,0.00070298,41774.0,41768.0,0.60235227]
[1644099473920,0.00070298,41774.0,41768.0,0.334613]
[1644099474121,0.00070298,41774.0,41767.0,0.33470904]
[1644099474323,0.00294775,41776.0,41767.0,0.38470904]
[1644099474521,0.000703,41774.0,41767.0,0.05009604]
[1644099474722,0.000703,41774.0,41768.0,0.334613]
[1644099474924,0.000703,41774.0,41767.0,0.33470904]
[1644099475321,0.000703,41774.0,41769.0,0.334613]
[1644099475520,0.00091295,41776.0,41769.0,9.604e-05]
[1644099475521,0.08828025,41770.0,41769.0,9.604e-05]
[1644099475769,0.08828025,41770.0,41769.0,0.33470904]
[1644099482018,0.43628025,41770.0,41769.0,9.604e-05]
[1644099482217,1.07139325,41770.0,41769.0,9.604e-05]
[1644099482721,1.2090896,41770.0,41769.0,9.604e-05]
[1644099484572,0.328291,41769.0,41767.0,9.604e-05]
[1644099484772,0.68289043,41768.0,41767.0,9.604e-05]
[1644099490115,0.68289043,41768.0,41767.0,0.00114563]
[1644099490318,0.34827743,41768.0,41767.0,0.00114563]
[1644099490977,0.68289043,41768.0,41767.0,0.00114563]
[1644099491479,0.34827743,41768.0,41767.0,0.00114563]
[1644099494719,0.68289043,41768.0,41767.0,0.00114563]
[1644099494919,0.34827743,41768.0,41767.0,0.00114563]
[1644099495522,0.34827743,41768.0,41767.0,0.00104331]
[1644099497223,0.34827743,41768.0,41762.0,0.00066477]
[1644099497422,0.34827743,41768.0,41766.0,0.0002866]
[1644099497423,0.334613,41767.0,41766.0,0.0002866]
[1644099497622,0.334613,41767.0,41762.0,0.00066477]
[1644099497623,1.383113,41767.0,41762.0,0.00066477]
[1644099497825,0.6005,41763.0,41762.0,0.00066477]
[1644099498027,0.983113,41763.0,41762.0,0.00066477]
[1644099498268,0.39995961,41762.0,41755.0,0.0002866]
[1644099498468,0.348,41761.0,41754.0,0.0183988]
[1644099498767,0.334613,41760.0,41754.0,0.0183988]
[1644099499266,0.43769635,41761.0,41754.0,0.0183988]
[1644099499267,0.328291,41758.0,41754.0,0.0183988]
[1644099499467,0.328291,41758.0,41746.0,0.0002866]
[1644099499468,0.37206887,41757.0,41746.0,0.0002866]
[1644099499667,0.37206887,41757.0,41745.0,0.115]
[1644099499668,0.68126961,41757.0,41745.0,0.115]
[1644099500066,0.0679139,41746.0,41745.0,0.115]
[1644099500367,0.0679139,41746.0,41745.0,0.58988715]
[1644099500970,0.1159139,41746.0,41745.0,0.58988715]
[1644099501567,0.1159139,41746.0,41745.0,0.334613]
[1644099502024,0.1159139,41746.0,41743.0,0.00070914]
[1644099502416,0.27459954,41745.0,41743.0,0.00070914]
[1644099502717,0.382613,41744.0,41743.0,0.00070914]
[1644099502916,0.048,41744.0,41743.0,0.00070914]
[1644099503121,0.048,41744.0,41738.0,0.05]
[1644099503317,0.048,41744.0,41741.0,0.00070767]
[1644099504317,0.048,41744.0,41738.0,0.28260078]
[1644099504616,0.048,41744.0,41740.0,0.00070768]
[1644099505417,0.048,41744.0,41738.0,0.05]
[1644099505621,0.048,41744.0,41740.0,0.24070768]
[1644099506572,0.048,41744.0,41740.0,0.24]
[1644099506770,0.048,41744.0,41740.0,0.24070779]
[1644099507771,0.048,41744.0,41741.0,0.334613]
[1644099509516,0.00126682,41743.0,41741.0,0.334613]
[1644099512821,0.00126682,41743.0,41741.0,0.33489913]
[1644099515973,0.00126682,41743.0,41741.0,0.00028613]
[1644099516170,0.00126682,41743.0,41740.0,0.24]
[1644099516370,0.00126682,41743.0,41740.0,0.24070778]
[1644099516571,0.048,41742.0,41740.0,0.24070778]
[1644099516772,0.28435125,41741.0,41740.0,0.24070778]
[1644099517037,0.33235125,41741.0,41740.0,0.24070778]
[1644099517430,0.33235125,41741.0,41740.0,0.24]
[1644099522469,0.66696425,41741.0,41740.0,0.24]
[1644099522669,0.382613,41741.0,41740.0,0.24]
[1644099522869,0.65253607,41741.0,41740.0,0.24]
[1644099523468,0.382613,41741.0,41740.0,0.24]
[1644099523668,0.64386039,41741.0,41740.0,0.24]
[1644099523874,0.382613,41741.0,41740.0,0.24]
[1644099524069,0.65364438,41741.0,41740.0,0.24]
[1644099524269,0.65511946,41741.0,41740.0,0.23993261]
[1644099524520,0.38408808,41741.0,41740.0,0.23993261]
[1644099526117,0.65426355,41741.0,41740.0,0.23993261]
[1644099526717,0.38408808,41741.0,41740.0,0.23993261]
[1644099527522,0.67199055,41741.0,41740.0,0.23993261]
[1644099528020,0.98458808,41741.0,41740.0,0.23993261]
[1644099528268,1.08458808,41741.0,41739.0,0.00028613]
[1644099528468,0.328291,41740.0,41738.0,0.0007078]
[1644099528668,0.66816482,41739.0,41738.0,0.0007078]
[1644099529269,0.382613,41739.0,41738.0,0.0007078]
[1644099529469,0.382613,41739.0,41733.0,0.00028613]
[1644099529470,0.40641983,41738.0,41733.0,0.00028613]
[1644099529670,0.382613,41737.0,41736.0,0.00070782]
[1644099530670,0.382613,41737.0,41731.0,0.00028613]
[1644099530874,0.382613,41737.0,41734.0,0.00070784]
[1644099532023,0.048,41737.0,41733.0,0.00070785]
[1644099532217,0.334613,41736.0,41733.0,0.00070785]
[1644099532416,0.048,41735.0,41733.0,0.00070785]
[1644099532618,0.328291,41734.0,41733.0,0.00070785]
[1644099532817,0.048,41734.0,41733.0,0.00070785]
[1644099533017,0.048,41734.0,41731.0,0.00028613]
[1644099533217,0.048,41734.0,41733.0,0.05]
[1644099533418,0.048,41740.0,41731.0,0.00070788]
[1644099533619,0.048,41740.0,41731.0,0.30070788]
[1644099533820,0.048,41740.0,41733.0,0.21547052]
[1644099534020,0.048,41740.0,41734.0,0.05]
[1644099534224,0.00147508,41741.0,41734.0,0.05028613]
[1644099534620,0.334613,41742.0,41735.0,0.00066022]
[1644099534818,0.334613,41742.0,41735.0,0.00094635]
[1644099535018,0.0823121,41740.0,41736.0,0.30745261]
[1644099535220,0.0823121,41740.0,41738.0,0.05]
[1644099535622,0.0823121,41740.0,41737.0,0.00028613]
[1644099535623,0.0823121,41740.0,41737.0,0.00094633]
[1644099535886,0.0823121,41740.0,41738.0,0.05]
[1644099536286,0.0823121,41740.0,41738.0,0.05028613]
[1644099536486,0.07955131,41740.0,41739.0,0.334613]
[1644099536691,0.01960119,41748.0,41739.0,0.60241622]
[1644099536893,0.01960119,41748.0,41739.0,0.26780322]
[1644099537088,0.01960119,41748.0,41739.0,0.00028613]